Cogmind - Beta 10.1 @@@ ROGUE MODE // 2020.10.11 @ 11:31:59 Player: Boris Result: Destroyed by P-60 Hacker with Shock Rifle Performance ------------- Evolutions (3) 1500 Regions Visited (10) 2000 Robots Destroyed (157) 785 Value Destroyed (4999) 4999 Prototype IDs (6) 120 Alien Tech Used (0) 0 Bonus (769) 769 TOTAL SCORE: 10173 Bonus ------- High Alert Combat Kills 317 Follower Combat Kills 40 Entered Garrisons 200 Used RIF Installer 500 Friendly Fire -288 Cogmind --------- Core Integrity 0/700 Matter 300/300 Energy 100/100 System Corruption 25% Temperature Cool (0) Movement Core (800) Ox15 Location -7/Storage Parts ------- > --- POWER (1) -------- (None) > --- PROPULSION (4) --- Combat Airjet > --- UTILITY (6) ------ Large Storage Unit Large Storage Unit Large Storage Unit > --- WEAPON (2) ------- (None) > --- INVENTORY (22) --- Improved Deuterium Engine Reinforced Deuterium Engine Combat Airjet Improved Cooling System Coolant Injector Medium Battery (200) High-capacity Matter Pod (200) Experimental Sensor Array System Shield Relay Coupler [NC] (17) Relay Coupler [Grunt] (23) Relay Coupler [Grunt] (31) Relay Coupler [Sentry] (18) System Backup Module Thief Drone Bay (3/3) Tesla Rifle Improved EM Pulse Cannon Shock Bomb Launcher Heavy Missile Launcher Peak State ------------ > --- POWER ------------ Improved Deuterium Engine > --- PROPULSION ------- Combat Airjet Combat Airjet Combat Airjet Combat Airjet > --- UTILITY ---------- Large Storage Unit Large Storage Unit Large Storage Unit Experimental Sensor Array Relay Coupler [NC] Relay Coupler [Sentry] > --- WEAPON ----------- EM Pulse Cannon Improved EM Pulse Cannon > --- INVENTORY -------- Improved Deuterium Engine Combat Airjet Improved Cooling System Coolant Injector Medium Battery High-capacity Matter Pod Improved Medium Armor Plating Improved Medium Armor Plating Layered Light Armor Plating Reflective Plating System Shield Relay Coupler [NC] Relay Coupler [Grunt] Relay Coupler [Grunt] Relay Coupler [Sentry] System Backup Module Thief Drone Bay Tesla Rifle Gauss Rifle Gauss Cannon Shock Bomb Launcher Heavy Missile Launcher [Rating: 53] Favorites ----------- Power Improved Ion Engine Engine Improved Ion Engine Power Core Micro Nuclear Core Propulsion Light Treads Treads Light Treads Leg Aluminum Leg Hover Unit Combat Airjet Utility Large Storage Unit Device Experimental Sensor Array Storage Large Storage Unit Processor Improved Signal Interpreter Hackware Relay Coupler [NC] Protection Light Armor Plating Weapon Particle Cannon Energy Gun Improved Medium Laser Energy Cannon Particle Cannon Ballistic Gun Assault Rifle Ballistic Cannon Gauss Cannon Launcher Mini Grenade Launcher Special Weapon Remote Datajack Special Melee Weapon Improved Datajack Build | -11 -10 -10 -9 -9 -9 -8 -8 -8 -7 -7 ------- Run | Scr Mat Min Mat Min Exi Min Mat Gar Fac Sto Slots Evolved 6 | . . . 2 . . . 2 . 2 . Power . | . . . . . . . . . . . Propulsion 2 | . . . . . . . 1 . 1 . Utility 4 | . . . 2 . . . 1 . 1 . Weapon . | . . . . . . . . . . . Parts Attached 184 | 6 6 1 30 13 . 5 20 8 77 18 Power 12 | 1 1 . 1 1 . . 2 . 2 4 Engine 10 | 1 1 . 1 1 . . 1 . 2 3 Core 2 | . . . . . . . 1 . . 1 Reactor . | . . . . . . . . . . . Propulsion 26 | 2 . 1 2 1 . . 4 3 12 1 Treads 14 | 2 . 1 2 1 . . 1 3 4 . Leg 7 | . . . . . . . 3 . 4 . Wheel . | . . . . . . . . . . . Hover 5 | . . . . . . . . . 4 1 Flight . | . . . . . . . . . . . Utility 80 | 1 2 . 20 6 . 4 7 2 30 8 Device 32 | . . . 9 3 . 1 3 1 13 2 Storage 5 | 1 2 . . . . 1 . . 1 . Processor 3 | . . . 2 . . . 1 . . . Hackware 3 | . . . . . . . . . 3 . Protection 37 | . . . 9 3 . 2 3 1 13 6 Artifact . | . . . . . . . . . . . Weapon 66 | 2 3 . 7 5 . 1 7 3 33 5 Energy Gun 22 | 2 1 . 1 1 . 1 1 3 10 2 Energy Cannon 17 | . 2 . 2 2 . . . . 11 . Ballistic Gun 13 | . . . 3 1 . . 2 . 5 2 Ballistic Cannon 2 | . . . . . . . . . 1 1 Launcher 6 | . . . 1 1 . . 4 . . . Special Weapon 5 | . . . . . . . . . 5 . Impact Weapon . | . . . . . . . . . . . Slashing Weapon . | . . . . . . . . . . . Piercing Weapon . | . . . . . . . . . . . Special Melee Weapon 1 | . . . . . . . . . 1 . Unidentified Prototypes 3 | . . . 2 1 . . . . . . Parts Lost 45 | . 1 . . 6 . 2 7 3 13 13 Power 4 | . . . . 1 . . 1 . . 2 Propulsion 17 | . . . . 1 . . 3 2 7 4 Utility 11 | . . . . 2 . 1 2 . 2 4 Weapon 13 | . 1 . . 2 . 1 1 1 4 3 Highest Loss Streak 10 | . 1 . . 6 . 1 2 2 5 10 Average Slot Usage (%) 97 | . 97 100 99 95 100 99 90 97 97 89 Engine 8 | . 14 14 11 9 11 11 4 . 4 5 Core 1 | . . . . . . . 4 9 2 . Treads 22 | . 28 28 22 19 22 22 19 19 23 . Leg 1 | . . . . . . . 7 5 2 . Hover 1 | . . . . . . . . . 1 26 Device 4 | . . . 5 10 11 7 3 . 5 1 Storage 24 | . 25 28 22 22 22 24 27 27 22 23 Processor 5 | . . . 11 11 11 8 3 9 5 . Hackware 2 | . . . . . . . . . 8 10 Protection 2 | . . . 5 . . 3 6 9 2 7 Energy Gun 7 | . 13 . . 10 11 11 9 15 6 1 Energy Cannon 7 | . 14 28 16 . . . . . 4 4 Ballistic Gun 4 | . . . 5 10 11 11 4 . 2 5 Naked Turns . | . . . . . . . . . . . Heaviest Build 80 | 13 45 45 50 49 45 63 68 63 80 80 Greatest Support 88 | 40 40 40 40 40 40 40 60 60 88 88 Greatest Overweight (x) 6 | . 1 1 1 2 1 1 3 6 3 1 Average Overweight (x) . | . . 1 1 1 1 1 1 1 . . Largest Inventory Capacity 22 | 6 16 16 16 16 16 22 22 22 22 22 Average Capacity 18 | 5 14 16 16 16 16 17 22 22 21 22 Most Carried 22 | 2 16 16 16 16 16 16 17 22 22 22 Average Carried 16 | 1 10 15 15 15 15 15 15 18 21 20 Final Capacity 22 | 6 16 16 16 16 16 22 22 22 22 22 Final Carried 22 | 2 16 16 16 16 16 16 16 22 22 19 Class Distribution -------------------- 53% | Mutant 26% | Scavenger-Mutant 16% | Hauler-Mutant 3% | Bothacker-Mutant Dominant Class ---------------- Mutant | -10/Materials Mutant | -10/Mines Mutant | -9/Materials Mutant | -9/Mines Mutant | -9/Exiles Mutant | -8/Mines Hauler-Mutant | -8/Materials Scavenger-Mutant | -8/Garrison Scavenger-Mutant | -7/Factory Hauler-Mutant | -7/Storage Resources | -11 -10 -10 -9 -9 -9 -8 -8 -8 -7 -7 ----------- Run | Scr Mat Min Mat Min Exi Min Mat Gar Fac Sto Matter Collected 3507 | 232 228 10 335 159 30 137 315 503 1005 553 Remotely . | . . . . . . . . . . . Salvage Created 4895 | . 351 102 790 185 . 307 611 436 1073 1040 Parts 286 | . 28 9 49 21 . 8 36 29 55 51 Haulers Intercepted 4 | . 2 . 2 . . . . . . . Recyclers Shooed 3 | . . . . 1 . . . . 1 1 Parts Field Recycled . | . . . . . . . . . . . Retrieved Matter . | . . . . . . . . . . . Parts Self-Destructed . | . . . . . . . . . . . Prevented . | . . . . . . . . . . . Kills | -11 -10 -10 -9 -9 -9 -8 -8 -8 -7 -7 ------- Run | Scr Mat Min Mat Min Exi Min Mat Gar Fac Sto Combat Hostiles Destroyed 135 | . 8 2 15 20 . 6 23 17 25 19 Guns 58 | . 6 . . 4 . 6 6 5 15 16 Cannons 24 | . 1 2 11 1 . . . . 8 1 AOE 48 | . 1 . 3 15 . . 17 11 1 . Classes Destroyed 17 | . 5 1 5 3 . 1 1 . 1 . Worker 2 | . . 1 . . . . . . . 1 Builder 5 | . 1 . . 2 . . 2 . . . Tunneler 1 | . . . . . . . 1 . . . Hauler 4 | . 2 . 2 . . . . . . . Recycler 2 | . . . 1 . . . . . 1 . Mechanic 1 | . . . 1 . . . . . . . Operator 1 | . . . 1 . . . . . . . Watcher 4 | . 2 . . . . . 1 . 1 . Swarmer 37 | . 6 . 4 3 . . 11 5 8 . Grunt 53 | . 2 2 6 . . 4 11 8 7 13 Brawler 6 | . . . . . . 2 1 1 1 1 Duelist 3 | . . . 1 . . . . 1 . 1 Sentry 12 | . . . 5 . . . . 2 2 3 Demolisher 2 | . . . . 2 . . . . . . Hunter 1 | . . . . . . . . . 1 . Programmer 7 | . . . . . . . . . 6 1 Assembled 15 | . . . . 15 . . . . . . Guerrilla 1 | . . . . 1 . . . . . . Best Kill Streak 22 | . 4 2 4 22 . 2 13 8 5 5 Combat Bots Only 20 | . 4 1 4 20 . 2 10 8 5 5 Max Kills in Single Turn 7 | . 2 1 3 7 . 1 3 3 2 1 Gunslinging . | . . . . . . . . . . . Exploded 7 | . 1 . 3 7 . . 3 3 1 . Melee . | . . . . . . . . . . . Uniques/NPCs Destroyed . | . . . . . . . . . . . Combat | -11 -10 -10 -9 -9 -9 -8 -8 -8 -7 -7 -------- Run | Scr Mat Min Mat Min Exi Min Mat Gar Fac Sto Damage Taken 9079 | . 282 120 511 817 . 256 971 587 2678 2857 Core 1352 | . 36 43 62 74 . 45 257 132 244 459 Absorbed by Shields . | . . . . . . . . . . . Core Remaining (%) 62 | 100 . 68 . . . 54 . 29 . . Volleys Fired 397 | . 39 5 30 20 . 29 73 29 108 64 Largest 2 | . 2 2 2 2 . 2 2 2 2 2 Hottest 136 | . 136 136 136 124 . 76 76 90 128 132 Shots Fired 597 | . 63 10 58 23 . 58 92 39 144 110 Gun 395 | . 39 . 8 16 . 58 68 26 92 88 Cannon 147 | . 24 10 49 3 . . . . 39 22 Launcher 42 | . . . 1 4 . . 24 13 . . Special 13 | . . . . . . . . . 13 . Kinetic 215 | . . . 8 15 . 29 29 . 61 73 Thermal 246 | . 35 10 49 4 . 29 39 . 61 19 Explosive 30 | . . . 1 4 . . 12 13 . . Electromagnetic 93 | . 28 . . . . . 12 26 9 18 Robot Hit Streak 22 | . 6 5 11 6 . 9 22 11 16 14 Robot Miss Streak 4 | . 4 1 2 4 . 3 3 3 4 3 Penetration Max 1 | . . . . . . . . . 1 1 Secondary Targets 5 | . 1 . . . . 1 . . 1 2 Max Gunslinging Chain 1 | . 1 . . . . 1 . . 1 1 Shots Hit Robots 401 | . 33 7 38 9 . 42 63 22 103 84 Core Hits 303 | . 16 4 23 43 . 15 48 33 49 72 Critical Hits 8 | . . . . . . 1 . . 5 2 Critical Kills 6 | . . . . . . . . . 4 2 Critical Parts Destroyed 2 | . . . . . . 1 . . 1 . Melee Attacks 1 | . . . . . . . . . 1 . Impact . | . . . . . . . . . . . Slashing . | . . . . . . . . . . . Piercing . | . . . . . . . . . . . Sneak Attacks 1 | . . . . . . . . . 1 . Combat Hostiles . | . . . . . . . . . . . Follow-up Attacks . | . . . . . . . . . . . Damage Inflicted 12446 | . 585 146 993 1281 . 620 2775 1506 2244 2296 Guns 5355 | . 279 . 78 96 . 620 742 297 1445 1798 Cannons 2116 | . 207 146 695 41 . . . . 658 369 Explosions 4815 | . 96 . 220 1144 . . 2026 1209 120 . Melee . | . . . . . . . . . . . Ramming 160 | . 3 . . . . . 7 . 21 129 Kinetic 3361 | . . . 78 96 . 289 299 . 1052 1547 Thermal 3423 | . 408 146 695 41 . 331 477 . 1044 281 Explosive 3964 | . . . 220 1144 . . 1391 1209 . . Electromagnetic 1538 | . 174 . . . . . 601 297 127 339 Impact . | . . . . . . . . . . . Slashing . | . . . . . . . . . . . Piercing . | . . . . . . . . . . . Highest Corruption 24 | . . . . . . 3 1 1 10 24 Average Corruption 3 | . . . . . . 3 1 1 2 11 Corruption Purged . | . . . . . . . . . . . Effects 78 | . . . . . . 5 . 4 45 24 Message Errors 22 | . . . . . . . . 2 17 3 Matter Fused 10 | . . . . . . 1 . . 6 3 Heat Flow Errors 4 | . . . . . . . . . 2 2 Energy Discharges 9 | . . . . . . 1 . . 6 2 Parts Rejected 1 | . . . . . . . . . . 1 Data Loss (minor) 10 | . . . . . . 1 . 1 6 2 Data Loss (major) 2 | . . . . . . . . . . 2 Misfires 1 | . . . . . . . . . 1 . Alerts 2 | . . . . . . . . . . 2 Misdirections 4 | . . . . . . . . . 1 3 Targeting Errors 12 | . . . . . . 2 . 1 6 3 Weapon Failures 1 | . . . . . . . . . . 1 Overload Shots . | . . . . . . . . . . . Overflow Damage 212 | . . . 36 32 . . 75 34 35 . Projectiles 16 | . . . . . . . . . 16 . Explosions 196 | . . . 36 32 . . 75 34 19 . Melee . | . . . . . . . . . . . Knockbacks 5 | . . . . . . . . . 4 1 Impact . | . . . . . . . . . . . Kinetic 5 | . . . . . . . . . 4 1 Secondary . | . . . . . . . . . . . Self-Inflicted Damage 434 | . . . 40 88 . . 173 50 27 56 Shots 13 | . . . 1 3 . . 6 2 1 . Rammed 36 | . 1 . . . . . 1 . 2 32 Targets Rammed 36 | . 1 . . . . . 1 . 2 32 Kicked . | . . . . . . . . . . . Crushed . | . . . . . . . . . . . Highest Temperature 453 | . 241 252 246 48 . 135 216 189 338 453 Average Temperature 96 | . 89 99 87 19 . 53 79 58 106 147 Received Heat Transfer 2511 | . 87 69 132 60 . 108 369 207 615 864 Effects 9 | . . . 4 . . . . . . 5 Shutdowns 1 | . . . . . . . . . . 1 Energy Bleed 1 | . . . . . . . . . . 1 Interference 5 | . . . 4 . . . . . . 1 Short Circuit 2 | . . . . . . . . . . 2 Siege Activations . | . . . . . . . . . . . Robots Corrupted 3 | . . . . . . . . 1 . 2 Combat Hostiles 3 | . . . . . . . . 1 . 2 Parts Fried 5 | . 1 . . . . . 2 . 1 1 Impact Corruptions . | . . . . . . . . . . . Robots Melted 2 | . . . 1 . . . . . 1 . Combat Hostiles 2 | . . . 1 . . . . . 1 . Parts Melted 12 | . . . 1 . . . 2 . 8 1 Heat Transferred 6122 | . 629 259 1221 74 . 703 1012 . 1742 482 Parts Sabotaged . | . . . . . . . . . . . Parts Stolen . | . . . . . . . . . . . Parts Stripped . | . . . . . . . . . . . Power Chain Reactions 2 | . 1 . . . . . 1 . . . Missiles Intercepted . | . . . . . . . . . . . Alert | -11 -10 -10 -9 -9 -9 -8 -8 -8 -7 -7 ------- Run | Scr Mat Min Mat Min Exi Min Mat Gar Fac Sto Peak Influence 870 | . 143 82 201 110 . 85 344 697 870 760 Initial 395 | . . 27 . 34 . . 19 159 365 395 Average 142 | . 50 17 73 31 . 15 177 562 191 483 Maximum Alert Level 3 | . . . 1 . . . 1 2 3 3 Low Security (%) 73 | 100 100 100 97 100 . 100 43 9 55 . Level 1 18 | . . . 2 . . . 56 2 41 28 Level 2 7 | . . . . . . . . 87 1 64 Level 3 . | . . . . . . . . . 1 6 Level 4 . | . . . . . . . . . . . Level 5 . | . . . . . . . . . . . High Security . | . . . . . . . . . . . Max Security . | . . . . . . . . . . . Squads Dispatched 17 | . 1 . 1 . . . 3 . 7 5 Investigation . | . . . . . . . . . . . Extermination 5 | . . . . . . . . . 4 1 Reinforcement 9 | . 1 . 1 . . . 3 . 2 2 Assault 2 | . . . . . . . . . . 2 Garrison 1 | . . . . . . . . . 1 . Intercept . | . . . . . . . . . . . Construction Impeded 2 | . . . . . . . 2 . . . Haulers Reinforced 1 | . . . . . . . . . . 1 Stealth | -11 -10 -10 -9 -9 -9 -8 -8 -8 -7 -7 --------- Run | Scr Mat Min Mat Min Exi Min Mat Gar Fac Sto Distress Signals 9 | . . . . 1 . . 3 . 2 3 Communications Jammed . | . . . . . . . . . . . Distress Signals . | . . . . . . . . . . . Times Spotted 205 | . 21 2 17 24 . 11 34 20 38 38 Peak Tracking Total 19 | . 4 2 4 19 . 3 6 5 7 11 Tactical Retreats 12 | . 1 . . . . 4 1 2 1 3 Traps | -11 -10 -10 -9 -9 -9 -8 -8 -8 -7 -7 ------- Run | Scr Mat Min Mat Min Exi Min Mat Gar Fac Sto Traps Triggered 7 | . 1 . . . . . . 5 1 . Indirectly . | . . . . . . . . . . . Trap Hack Attempts . | . . . . . . . . . . . Triggered . | . . . . . . . . . . . Disarmed . | . . . . . . . . . . . Reprogrammed . | . . . . . . . . . . . Reused . | . . . . . . . . . . . Traps Extracted . | . . . . . . . . . . . Installed . | . . . . . . . . . . . Triggered . | . . . . . . . . . . . Machines | -11 -10 -10 -9 -9 -9 -8 -8 -8 -7 -7 ---------- Run | Scr Mat Min Mat Min Exi Min Mat Gar Fac Sto Machines Disabled 19 | . 2 . 1 . . . 4 1 10 1 Max in Single Turn 4 | . 1 . 1 . . . 2 1 4 1 Garrison Access 1 | . . . . . . . . . 1 . Garrison Relay 1 | . . . . . . . . 1 . . Machines Sabotaged . | . . . . . . . . . . . Garrisons Compromised 1 | . . . . . . . . . 1 . Overloaded Fab Kills . | . . . . . . . . . . . Fab Network Shutdowns 1 | . . . . . . . . . 1 . Hacking | -11 -10 -10 -9 -9 -9 -8 -8 -8 -7 -7 --------- Run | Scr Mat Min Mat Min Exi Min Mat Gar Fac Sto Machines Accessed 38 | . 5 1 6 3 1 . 3 . 15 4 Terminals 22 | . 5 1 3 2 . . 1 . 7 3 Fabricators 4 | . . . . . . . . . 4 . Repair Stations 5 | . . . 2 . . . . . 2 1 Recycling Units 1 | . . . . . . . . . 1 . Scanalyzers 2 | . . . 1 . . . 1 . . . Garrison Access 2 | . . . . . . . 1 . 1 . Total Hacks 114 | . 14 2 25 11 1 . 11 . 37 13 Successful 66 | . 6 1 16 3 1 . 10 . 22 7 Failed 48 | . 8 1 9 8 . . 1 . 15 6 Catastrophic 7 | . 1 1 . 1 . . . . 4 . Database Lockouts . | . . . . . . . . . . . Manual 57 | . 10 2 3 13 . . 2 . 15 12 Terminals 63 | . 14 2 11 10 . . 4 . 10 12 Fabricators 13 | . . . . . . . . . 13 . Repair Stations 15 | . . . 6 . . . . . 8 1 Recycling Units 2 | . . . . . . . . . 2 . Scanalyzers 13 | . . . 8 . . . 5 . . . Garrison Access 6 | . . . . . . . 2 . 4 . Terminal Hacks 18 | . 5 1 3 3 1 . 3 . . 2 Record 1 | . . . . . 1 . . . . . Part Schematic 1 | . 1 . . . . . . . . . Robot Analysis 5 | . 2 . 1 2 . . . . . . Prototype ID Bank 1 | . 1 . . . . . . . . . Open Door 2 | . . . . 1 . . . . . 1 Branch Access Points 2 | . 1 1 . . . . . . . . Emergency Access Points 1 | . . . . . . . 1 . . . Unreport Threat 3 | . . . 1 . . . 1 . . 1 Locate Traps 1 | . . . . . . . 1 . . . Hauler Manifests 1 | . . . 1 . . . . . . . Fabricator Hacks 5 | . . . . . . . . . 5 . Load Schematic 2 | . . . . . . . . . 2 . Build 3 | . . . . . . . . . 3 . Repair Station Hacks 9 | . . . 4 . . . . . 5 . Scan Component 6 | . . . 3 . . . . . 3 . Repair 3 | . . . 1 . . . . . 2 . Recycling Unit Hacks . | . . . . . . . . . . . Scanalyzer 13 | . . . 8 . . . 5 . . . Insert Component 6 | . . . 4 . . . 2 . . . Analyze 7 | . . . 4 . . . 3 . . . Garrison Access Hacks 3 | . . . . . . . 1 . 2 . Unlock Access 1 | . . . . . . . 1 . . . Seal Access 1 | . . . . . . . . . 1 . Coupler Status 1 | . . . . . . . . . 1 . Unauthorized Hacks 18 | . 1 . 1 . . . 1 . 10 5 Terminals 10 | . 1 . 1 . . . 1 . 3 4 Track 1 | . . . . . . . . . . 1 Botnet 8 | . 1 . 1 . . . 1 . 2 3 Operators 1 | . . . . . . . . . 1 . Fabricators 2 | . . . . . . . . . 2 . Prioritize 1 | . . . . . . . . . 1 . Siphon 1 | . . . . . . . . . 1 . Repair Stations 2 | . . . . . . . . . 1 1 Mechanics 2 | . . . . . . . . . 1 1 Recycling Units 2 | . . . . . . . . . 2 . Recyclers 1 | . . . . . . . . . 1 . Mask 1 | . . . . . . . . . 1 . Scanalyzers . | . . . . . . . . . . . Garrison Access 2 | . . . . . . . . . 2 . Restock 1 | . . . . . . . . . 1 . Watchers 1 | . . . . . . . . . 1 . Data Cores Recovered . | . . . . . . . . . . . Used . | . . . . . . . . . . . Hacking Detections 31 | . 5 1 6 2 . . 2 . 12 3 Full Trace Events 1 | . 1 . . . . . . . . . Feedback Events . | . . . . . . . . . . . Feedback Blocked . | . . . . . . . . . . . Robot Schematics Acquired . | . . . . . . . . . . . Robots Built . | . . . . . . . . . . . Matter . | . . . . . . . . . . . Time . | . . . . . . . . . . . Total Robot Build Rating . | . . . . . . . . . . . Part Schematics Acquired 7 | . 1 . 4 . . . 2 . . . Parts Built 5 | . . . . . . . . . 5 . Matter 548 | . . . . . . . . . 548 . Time 178 | . . . . . . . . . 178 . Total Part Build Rating 24 | . . . . . . . . . 24 . Parts Repaired 3 | . . . 1 . . . . . 2 . Time 132 | . . . 80 . . . . . 52 . Parts Recycled . | . . . . . . . . . . . Recycled Matter . | . . . . . . . . . . . Retrieved Matter . | . . . . . . . . . . . Retrieved Components . | . . . . . . . . . . . Parts Scanalyzed 6 | . . . 4 . . . 2 . . . Part Schematics Acquired 6 | . . . 4 . . . 2 . . . Parts Damaged . | . . . . . . . . . . . Bothacking | -11 -10 -10 -9 -9 -9 -8 -8 -8 -7 -7 ------------ Run | Scr Mat Min Mat Min Exi Min Mat Gar Fac Sto Used RIF Installer 1 | . . . . . . . . 1 . . Robots Hacked 7 | . . . . . . . . . 7 . Non-combat 6 | . . . . . . . . . 6 . Combat 1 | . . . . . . . . . 1 . Robot Hacks Applied 9 | . . . . . . . . . 9 . find_chute 1 | . . . . . . . . . 1 . map_walls 1 | . . . . . . . . . 1 . find_fabricator 1 | . . . . . . . . . 1 . drop_inventory 1 | . . . . . . . . . 1 . check_alert 1 | . . . . . . . . . 1 . purge_threat 1 | . . . . . . . . . 1 . disarm_traps 1 | . . . . . . . . . 1 . map_route 1 | . . . . . . . . . 1 . formatsys_high 1 | . . . . . . . . . 1 . Relay Couplers Released 14 | . . . . . . . . 5 9 . Machine Destruction 8 | . . . . . . . . 5 3 . Programmers 6 | . . . . . . . . . 6 . Attached 3 | . . . . . . . . . 3 . Robots Rewired . | . . . . . . . . . . . Allies Hacked . | . . . . . . . . . . . Hacks Repelled . | . . . . . . . . . . . Allies | -11 -10 -10 -9 -9 -9 -8 -8 -8 -7 -7 -------- Run | Scr Mat Min Mat Min Exi Min Mat Gar Fac Sto Total Allies 6 | . . 3 . . . . . . 1 2 Largest Group 3 | . . 3 3 . . . . . 1 2 Highest-Rated Group 62 | . . 40 40 . . . . . 32 62 Highest-Rated Ally 32 | . . 16 16 . . . . . 32 31 Total Orders 3 | . . . . 3 . . . . . . ROAM 1 | . . . . 1 . . . . . . RETURN 2 | . . . . 2 . . . . . . Ally Attacks 33 | . . . 20 . . . . . 1 12 Total Damage 413 | . . . 195 . . . . . 54 164 Kills 2 | . . . 1 . . . . . . 1 Allies Corrupted . | . . . . . . . . . . . Allies Melted . | . . . . . . . . . . . Intel | -11 -10 -10 -9 -9 -9 -8 -8 -8 -7 -7 ------- Run | Scr Mat Min Mat Min Exi Min Mat Gar Fac Sto Robot Analysis Total 5 | . 2 . 1 2 . . . . . . Derelict Logs Recovered 3 | . . . . 3 . . . . . . Drone Launches 2 | . . . . 2 . . . . . . Drone Recoveries 2 | . . . . 2 . . . . . . Exploration | -11 -10 -10 -9 -9 -9 -8 -8 -8 -7 -7 ------------- Run | Scr Mat Min Mat Min Exi Min Mat Gar Fac Sto Turns Passed 11963 | 88 1481 903 1454 1224 491 930 871 602 3444 475 Spaces Moved 5879 | 51 745 488 706 606 271 462 295 276 1750 229 Core 3 | 3 . . . . . . . . . . Treads 5336 | 48 745 488 706 606 271 462 263 229 1518 . Legs 205 | . . . . . . . 32 47 126 . Wheels . | . . . . . . . . . . . Hover 335 | . . . . . . . . . 106 229 Flight . | . . . . . . . . . . . Fastest Speed 50 | 50 160 180 180 180 180 180 150 150 68 68 Average Speed 169 | 153 177 180 180 182 180 180 178 182 159 76 Slowest Speed 320 | 160 180 180 180 200 180 180 220 300 320 142 Overloaded Moves . | . . . . . . . . . . . Propulsion Burnouts . | . . . . . . . . . . . Robots Hopped . | . . . . . . . . . . . Cave-ins Triggered . | . . . . . . . . . . . Exploration Rate (%) 53 | 5 90 81 39 97 64 70 22 52 43 29 Regions Visited 10 Branch Regions 5 Pre-discovered Areas 2 | . . . . 1 1 . . . . . Known Exits Taken 7 | . 1 . 1 1 1 1 1 . 1 . Unknown Exits Taken 2 | 1 . 1 . . . . . . . . Scrap Searched 4 | . . . . 1 . 3 . . . . Spaces Dug 14 | . . . 7 . . . . 5 2 . Terrain Destroyed 285 | . 4 . 7 41 . . 157 36 36 4 Melee . | . . . . . . . . . . . Projectile 12 | . . . . 1 . . . . 7 4 AOE 273 | . 4 . 7 40 . . 157 36 29 . Terrain Rammed . | . . . . . . . . . . . Walls Destroyed . | . . . . . . . . . . . Machines Disabled . | . . . . . . . . . . . Actions | -11 -10 -10 -9 -9 -9 -8 -8 -8 -7 -7 --------- Run | Scr Mat Min Mat Min Exi Min Mat Gar Fac Sto Total 7201 | 58 841 505 826 697 276 501 541 338 2242 376 Wait 531 | . 32 6 42 53 . 4 143 1 238 12 Move 5868 | 50 744 487 705 605 270 461 294 274 1749 229 Hop . | . . . . . . . . . . . Pick Up 97 | 2 15 3 7 5 3 2 7 11 33 9 Fast Attach 51 | 6 3 . 6 1 . . 4 3 23 5 Attach 31 | . . . 3 6 . 2 5 3 6 6 Detach 3 | . . . . 1 . . . 1 . 1 Swap 102 | . 3 1 21 6 . 3 11 2 48 7 Drop 74 | . 4 3 12 . 3 . 3 4 34 11 Fire 397 | . 39 5 30 20 . 29 73 29 108 64 Melee 1 | . . . . . . . . . 1 . Ram 32 | . . . . . . . . . . 32 Kick 1 | . . . . . . . 1 . . . Crush 3 | . 1 . . . . . . . 2 . Escape Stasis 10 | . . . . . . . . 10 . . Rewire . | . . . . . . . . . . . Trap . | . . . . . . . . . . . Miscellaneous . | . . . . . . . . . . . Route ------- -11/Scrapyard -10/Materials (discovered 5 exits: *Mat x3 / *Min x2) -10/Mines -9/Materials (discovered 2 exits: *Mat / *Min) -9/Mines (discovered 4 exits: *Mat x2 / *Exi / *Zio) -9/Exiles (discovered 2 exits: *Min x2) -8/Mines -8/Materials (discovered 2 exits: Fac / Gar) -8/Garrison (discovered 2 exits: *Fac x2) -7/Factory (discovered 4 exits: *Fac x2 / *Sto / *Low) -7/Storage History --------- Turn | Location | Event 6 | -11/Scrapyard | Discovered new exit (range 16) 89 | -11/Scrapyard | Entered Materials 220 | -10/Materials | Discovered new exit (range 12) 236 | -10/Materials | Discovered new exit (range 9) 304 | -10/Materials | Build established: Mutant 426 | -10/Materials | Identified exit to Mines 562 | -10/Materials | Discovered new exit (range 13) 1187 | -10/Materials | Discovered new exit (range 10) 1570 | -10/Materials | Entered Mines 1802 | -10/Mines | Received a Rocket Launcher from a helpful Derelict 1851 | -10/Mines | Found a damaged Exp. Sensor Array with a note attached 1857 | -10/Mines | Found Prototype Device 1988 | -10/Mines | Assisted by bots powering up and referring to "LRC-V3" 2108 | -10/Mines | Discovered new exit (range 14) 2473 | -10/Mines | Entered Materials 2473 | -9/Materials | Accompanied by 3 allies 2473 | -9/Materials | Evolved 2 slots: Utility x2 2473 | -9/Materials | Identified Exp. Sensor Array 3161 | -9/Materials | Repaired Exp. Sensor Array? 3231 | -9/Materials | Discovered new exit (range 9) 3247 | -9/Materials | Identified exit to Materials 3390 | -9/Materials | Discovered new exit (range 8) 3925 | -9/Materials | Identified exit to Mines 3927 | -9/Materials | Entered Mines 3928 | -9/Mines | Assembled infested the area 3933 | -9/Mines | Assisted by a Guerilla fighting off Assembled 3950 | -9/Mines | Discovered exit to Materials (range 8) 3988 | -9/Mines | Lost 6 parts (1p1n2u2w) 4009 | -9/Mines | Destroyed 20 combat bots 4324 | -9/Mines | Deemed a non-threat by the Exiles lab entrance 4499 | -9/Mines | Found the Drone Emporium 4509 | -9/Mines | Found Prototype Device 4528 | -9/Mines | Identified Thief Drone Bay 4647 | -9/Mines | A Derelict revealed a hidden shortcut to a safe place 4662 | -9/Mines | Identified exit to Zion 4727 | -9/Mines | Discovered exit to Materials (range 15) 5144 | -9/Mines | Discovered new exit (range 5) 5149 | -9/Mines | Identified exit to Exiles 5151 | -9/Mines | Entered Exiles 5179 | -9/Exiles | Discovered new exit (range 14) 5201 | -9/Exiles | Identified exit to Mines 5237 | -9/Exiles | Met 8R-AWN 5265 | -9/Exiles | Met EX-HEX 5385 | -9/Exiles | Met EX-DEC 5418 | -9/Exiles | Visited The Gauntlet 5511 | -9/Exiles | Learned location of Zion (-7) 5626 | -9/Exiles | Discovered exit to Mines (range 10) 5642 | -9/Exiles | Entered Mines 6557 | -8/Mines | Discovered exit to Materials (range 8) 6572 | -8/Mines | Entered Materials 6572 | -8/Materials | Evolved 2 slots: Propulsion x1, Utility x1 6573 | -8/Materials | Identified exit to Factory 6659 | -8/Materials | Build established: Hauler-Mutant 7412 | -8/Materials | Destroyed 10 combat bots 7441 | -8/Materials | Identified exit to Garrison 7443 | -8/Materials | Entered Garrison 7493 | -8/Garrison | Triggered checkpoint 7495 | -8/Garrison | Triggered checkpoint 7496 | -8/Garrison | Core integrity fell below 50% 7537 | -8/Garrison | Destroyed 7 combat bots 7595 | -8/Garrison | Destroyed 8 combat bots 7620 | -8/Garrison | Triggered checkpoint 7682 | -8/Garrison | Discovered exit to Factory (range 8) 7801 | -8/Garrison | Discovered exit to Factory (range 10) 7828 | -8/Garrison | Installed Relay Interface Framework 7890 | -8/Garrison | Build established: Scavenger-Mutant 7898 | -8/Garrison | Triggered checkpoint 7936 | -8/Garrison | Garrison Relay disabled 8045 | -8/Garrison | Entered Factory 8045 | -7/Factory | Evolved 2 slots: Propulsion x1, Utility x1 8046 | -7/Factory | Identified exit to Storage 9284 | -7/Factory | Repaired Lrg. Storage Unit 9332 | -7/Factory | Repaired Lgt. Treads 9930 | -7/Factory | Discovered new exit (range 11) 9946 | -7/Factory | Identified exit to Factory 10040 | -7/Factory | Discovered new exit (range 6) 10048 | -7/Factory | Identified exit to Lower Caves 11031 | -7/Factory | Lost 5 parts (3n1u1w) 11256 | -7/Factory | Fabricated Cmb. Airjet (x2) 11303 | -7/Factory | Fabricated Cmb. Airjet? 11306 | -7/Factory | System corruption reached 10% 11350 | -7/Factory | Discovered exit to Factory (range 11) 11450 | -7/Factory | Local fabrication network quarantined 11473 | -7/Factory | Fabricated Imp. Medium Armor Plating (x1) 11489 | -7/Factory | Entered Storage 11496 | -7/Storage | Met a pair of Derelict thieves 11603 | -7/Storage | Build established: Hauler-Mutant 11624 | -7/Storage | Core integrity fell below 50% 11896 | -7/Storage | Core integrity fell below 20% 11964 | -7/Storage | Lost 10 parts (1p3n3u3w) 11964 | -7/Storage | Destroyed by P-60 Hacker with Shock Rifle Last Messages --------------- 11934_ R-06 Scavenger collects Particle Gun. 11935_ System corrupted: Energy discharge (-34). 11935_ U-05 Engineer builds a Wall. 11937_ U-05 Engineer lays Concrete. 11937_ R-06 Scavenger collects Imp. Heat Sink. 11938_ U-05 Engineer lays Concrete. 11939_ Chain reaction triggered in Lgt. Ion Engine. 11939_ U-05 Engineer destroyed. 11939_ U-05 Engineer lays Concrete. 11942_ Slammed into P-60 Hacker. 11943_ U-05 Engineer lays Concrete. 11946_ U-05 Engineer builds a Wall. 11950_ Slammed into P-60 Hacker. 11950_ Destabilizing: Core damaged (-7). 11954_ P-60 Hacker resets U-05 Engineer, system corruption cleaned. 11955_ U-05 Engineer lays Concrete. 11956_ System corrupted: Energy discharge (-29). 11956_ U-05 Engineer lays Concrete. 11958_ U-05 Engineer builds a Wall. 11958_ Slammed into P-60 Hacker. Map ----- +----------------------------------------------------+ | ??????????????????????????????????????????? | | ??????????????????????????????????????????? | | ??????????????????????????????????????????? | | ??????????????????????????????????????????? | | ??????????????????????????????????????????? | | ??????????????????????????????????????????? | | ??????????????????????????????????????????? | | ??????????????????????????????????????????? | | ??????????????????????????????????????????? | | ??????????????????????????????????????????? | | ??????????????????????????????????????????? | | ??????????????????????????????????????????? | | ??????????????????????????????????????????? | | ??????????????????????????????????????????? | | ??????????????????????????????????????????? | | ?????????????????#######??????????????????? | | ????????????????? ???????????????????? | | ?????????????# ???????????????????? | | ?????????????# """ ????????????????????? | | ?????????????? """ ???????????? ???????? | | ?????????????#?""" ???????????? ??????? | | ?????????????? !??????????? ????????? | | ??????????????? ??????????# ?????????? | | ???????????????? ????????? + ??????????? | | ???????????????###/####????? ^#???????????? | | ????????########%%@%#%###### ^##+#????????? | | ????????# "Tp%!w % ###??????? | | ????????# ""%%* |= m + ???? | | ????????+ ##### %%###k%##+####+###?# """ | | ?????????????#########%*!# ## """ | | ?????????????# %[=#% """"" ## k | | ?????????????# *+=%+% """""???# """ | | ?????????????# =#%=# """""???# """ | | ?????????????#! %#%## ??# """ | | ?????????????# ! !#[############?# k[ | | ?????????????# ! # ## ###########+ | | ?????????????# !!#%## " | | ?????????????#% | # ## "T | | ?????????????# !! +% !* | | ?????????????############# ###########+ | | ???????????????????????#####+#####?????# | | ????????????????????#### % #?????# | | ????????????????????#""" #?????## | | ????????????????????#"R """%" " #?????# | | ????????????????????#""" """ " " #?????# | | ????????????????????# "" """* ] #?????#!!! | | ????????????????????#### %[ =%% #?????#!!! | | ??????????????????????# = = ! #?????#### | | ??????????????????????## !=%/!* !#????????? | | ???????????????????????###########????????? | +----------------------------------------------------+ Best States ------------- Heat Dissipation 34 Energy Generation 16 Energy Capacity 290 Matter Stores 300 Matter Capacity 300 Sight Range 16 Robot Scan Range 30 Terrain Scan Density 10 Armor Coverage 450 Evasion (%) 51 Recoil Reduction 4 Relay Coupler Types 30 Relay Coupler Value 2 Item Schematics ----------------- Lrg. Storage Unit | -10/Materials | Hacked Imp. EM Shotgun | -9/Materials | Scanalyzed Exp. Sensor Array | -9/Materials | Scanalyzed Lgt. Treads | -9/Materials | Scanalyzed Lgt. Armor Plating | -9/Materials | Scanalyzed Cmb. Airjet | -8/Materials | Scanalyzed Imp. Light Armor Plating | -8/Materials | Scanalyzed Robot Schematics ------------------ None Fabricated ------------ Cmb. Airjet | x2 | -7/Factory Cmb. Airjet | x2 | -7/Factory Imp. Medium Armor Plating | x1 | -7/Factory | Preloaded Alien Tech Used ----------------- None Achievements -------------- Exterminator Challenges ------------ None Game ------ Seed WaveDisposableExoskeleton Manual? 0 Play Time 02:05:31 Cumulative 69.5 hours Start 2020.10.10 @ 15:46:52 End 2020.10.11 @ 11:31:59 Sessions 3 Manual Loads 0 Difficulty Rogue Special Mode None Game No. 20 Rogue 5 Adventurer 15 Explorer 0 Win Type - Total 1 Types 0/0/0/1/0/0/0/0/0 Lore% 55 Gallery% 62 Achievement% 53 Wizard Run 0 Options --------- ASCII 0 Keyboard 0 Movement Numpad Keybinds 0 Fullscreen 1 Font 18/SmallcapsGlow Map View 76x50 Tactical HUD 1 Map Filters NONE Filters NONE Steam 1 RUN: b8c35cce-fbd7-4d6e-9773-7e1d1a3f75a9